fUST/lending_fUST_20240831
["ID","MTS","AMOUNT","RATE_DAILY","PERIOD"]
[336721043,1725070243978,-208.03,0.0003314,3]
[336721044,1725070243988,-173.35,0.0003314,3]
[336721045,1725070243997,-866.8,0.0003314,3]
[336721046,1725070244006,-22168.0530813,0.0003314,4]
[336721047,1725070244016,-1981.61,0.00033149,31]
[336721048,1725070244026,-500.0,0.00033149,31]
[336721049,1725070244035,-752.26,0.00033149,31]
[336721050,1725070244044,-500.0,0.00033149,31]
[336721051,1725070244054,-500.0,0.00033149,31]
[336721052,1725070244063,-2344.15,0.00033149,31]
[336721053,1725070244074,-500.0,0.00033149,31]
[336721054,1725070244087,-500.0,0.0003315,31]
[336721055,1725070244096,-500.0,0.0003315,31]
[336721056,1725070244105,-502.65634266,0.0003315,31]
[336721057,1725070244114,-754.5,0.0003315,31]
[336721058,1725070244123,-500.0,0.0003315,31]
[336721059,1725070244132,-500.0,0.0003315,31]
[336721060,1725070244142,-500.0,0.0003315,31]
[336721061,1725070244150,-504.33239124,0.0003315,31]
[336721062,1725070244159,-505.75016094,0.0003315,31]
[336721063,1725070244168,-500.0,0.0003315,31]
[336721064,1725070244178,-526.55886428,0.0003315,31]
[336721065,1725070244187,-500.0,0.0003315,31]
[336721066,1725070244196,-775.41,0.0003315,31]
[336721067,1725070244206,-151.0,0.0003315,14]
[336721068,1725070244215,-500.0,0.0003315,31]
[336721069,1725070244224,-500.0,0.0003315,31]
[336721070,1725070244234,-500.0,0.0003315,31]
[336721071,1725070244243,-500.0,0.0003315,31]
[336721072,1725070244252,-500.0,0.0003315,31]
[336721073,1725070244260,-500.0,0.0003315,31]
[336721074,1725070244269,-151.0,0.0003315,7]
[336721075,1725070244279,-151.0,0.0003315,14]
[336721076,1725070244289,-151.0,0.0003315,14]
[336721077,1725070244298,-500.0,0.0003315,31]
[336721078,1725070244307,-500.0,0.0003315,31]
[336721079,1725070244316,-151.0,0.0003315,14]
[336721080,1725070244326,-291.510002,0.0003315,14]
[336721081,1725070244335,-198.276425,0.0003315,14]
[336721082,1725070244345,-500.0,0.0003315,31]
[336721083,1725070244354,-198.276425,0.0003315,14]
[336721084,1725070244363,-500.0,0.0003315,31]
[336721085,1725070244372,-500.0,0.0003315,31]
[336721086,1725070244381,-151.0,0.0003315,14]
[336721087,1725070244391,-500.0,0.0003315,31]
[336721088,1725070244400,-500.0,0.0003315,31]
[336721089,1725070244409,-121.25572322,0.0003315,31]
[336721095,1725070246754,-98243.76419289,0.00033138,2]
[336721096,1725070246898,-14252.396178,0.00033138,2]
[336721097,1725070246936,-3.0,0.00033138,2]
[336721100,1725070305550,163.864209,0.00014247,2]
[336721101,1725070305766,163.864209,0.00023688,2]
[336721111,1725070992434,163.373762,0.00014247,2]
[336721114,1725071111218,10000.0,0.00017,2]
[336721115,1725071120181,8422.74093633,0.00017,2]
[336721116,1725071120206,1577.25906367,0.00017,2]
[336721117,1725071128821,10000.0,0.00017,2]
[336721119,1725071136148,10000.0,0.00017,2]
[336721120,1725071143243,10000.0,0.00017,2]
[336721125,1725071226139,-163.373762,0.00021467,2]
[336721126,1725071226161,-300.0,0.00022562,2]
[336721127,1725071226183,-1010.91355842,0.00022563,2]
[336721128,1725071228164,-447.5174238,0.00022563,2]
[336721130,1725071289146,399.17396977,0.000167,2]
[336721137,1725071347192,-300.0,0.00022562,2]
[336721138,1725071347214,-300.0,0.00022562,2]
[336721139,1725071347235,-23431.56901778,0.00022563,2]
[336721140,1725071347255,-11044.7802705,0.00022686,2]
[336721141,1725071347276,-646.69349526,0.00023,30]
[336721142,1725071348125,-1830.92215445,0.00023,30]
[336721144,1725071350115,-42478.12539106,0.00023,30]
[336721145,1725071350138,-250.0,0.00023686,2]
[336721146,1725071350161,-250.0,0.00023751,2]
[336721147,1725071350182,-1488.61481086,0.000238,2]
[336721148,1725071350205,-250.0,0.00023816,2]
[336721149,1725071350228,-250.0,0.00023881,2]
[336721150,1725071350249,-250.0,0.00023946,2]
[336721151,1725071350270,-4095.96440063,0.00024,60]
[336721152,1725071350292,-250.0,0.00024011,2]
[336721153,1725071350315,-250.0,0.00024076,2]
[336721154,1725071350337,-250.0,0.00024141,2]
[336721155,1725071350359,-250.0,0.00024206,2]
[336721156,1725071350382,-250.0,0.00024271,2]
[336721157,1725071350404,-250.0,0.00024336,2]
[336721158,1725071350425,-250.0,0.00024401,2]
[336721159,1725071350454,-250.0,0.00024466,2]
[336721160,1725071350477,-292.0,0.00024504,2]
[336721161,1725071350499,-250.0,0.00024531,2]
[336721162,1725071350520,-250.0,0.00024595,2]
[336721163,1725071350542,-250.0,0.0002466,2]
[336721164,1725071350564,-250.0,0.00024725,2]
[336721165,1725071350586,-250.0,0.0002479,2]
[336721166,1725071350608,-420.0,0.00024818,2]
[336721167,1725071350631,-250.0,0.00024855,2]
[336721168,1725071350656,-250.0,0.0002492,2]
[336721169,1725071350679,-587.0,0.000273,2]
[336721170,1725071350705,-163.373762,0.00028687,2]
[336721171,1725071350727,-160.023817,0.00028767,2]
[336721197,1725071431944,-151.0,0.0003,120]
[336721198,1725071431954,-2585.7269119,0.00030642,2]
[336721200,1725071431963,-518.8723371,0.0003075,7]
[336721202,1725071431973,-991.4356078,0.00031132,2]
[336721204,1725071431982,-400.0,0.00031231,2]
[336721205,1725071431991,-600.0,0.00031232,13]
[336721207,1725071432001,-600.0,0.00031232,13]
[336721209,1725071432010,-972.40088971,0.00031232,13]
[336721210,1725071432019,-600.0,0.00031492,14]
[336721212,1725071432028,-991.4356078,0.00031646,2]
[336721213,1725071432038,-600.0,0.00031753,15]
[336721214,1725071432047,-151.0,0.00031808,120]
[336721215,1725071432057,-600.0,0.00032026,15]
[336721217,1725071432066,-991.4356078,0.00032161,2]
[336721219,1725071432076,-991.4356078,0.00032675,2]
[336721221,1725071432085,-161.54,0.000327,31]
[336721222,1725071432095,-5462.86865824,0.00032713,2]
[336721224,1725071432104,-2517.04411231,0.00032724,2]
[336721225,1725071432113,-306.0,0.0003274,2]
[336721226,1725071432122,-941.27983438,0.00032814,60]
[336721228,1725071432135,-210.29451237,0.00032814,2]
[336721230,1725071432145,-3564.07893379,0.00032822,2]
[336721285,1725071440054,-161.56,0.000327,31]
[336721286,1725071440064,-8241.78234276,0.00032822,2]
[336721287,1725071440074,-23547.8367377,0.00032824,4]
[336721288,1725071440084,-451.51,0.00032856,3]
[336721289,1725071440094,-376.25,0.00032856,3]
[336721290,1725071440104,-26609.2575786,0.00032866,4]
[336721307,1725071445863,-20486.4158968,0.00032866,4]
[336721309,1725071445876,-500.0,0.00032876,31]
[336721311,1725071445886,-500.0,0.00032876,31]
[336721313,1725071445895,-500.0,0.00032876,14]
[336721315,1725071445906,-500.0,0.00032876,7]
[336721316,1725071445916,-221.57230476,0.00032876,31]
[336721317,1725071445926,-500.0,0.00032876,31]
[336721318,1725071445936,-502.65634266,0.00032876,31]
[336721319,1725071445946,-245.3535309,0.00032876,31]
[336721320,1725071445956,-500.0,0.00032876,31]
[336721321,1725071445967,-526.55886428,0.00032876,31]
[336721322,1725071445976,-500.0,0.00032876,31]
[336721323,1725071445985,-500.0,0.00032876,31]
[336721324,1725071445995,-505.75016094,0.00032876,31]
[336721325,1725071446005,-504.33239124,0.00032876,31]
[336721326,1725071446015,-491.78198204,0.00032876,31]
[336721327,1725071446025,-500.0,0.00032876,2]
[336721328,1725071446034,-500.0,0.00032876,31]
[336721329,1725071446043,-500.0,0.00032876,31]
[336721330,1725071446053,-500.0,0.00032876,31]
[336721331,1725071446063,-500.0,0.00032876,31]
[336721332,1725071446072,-210.36706454,0.00032876,31]
[336721333,1725071446082,-504.02684375,0.00032876,31]
[336721334,1725071446091,-289.2267322,0.00032876,31]
[336721335,1725071446100,-500.0,0.00032876,31]
[336721336,1725071446110,-500.0,0.00032876,31]
[336721337,1725071446119,-642.87312222,0.00032876,31]
[336721338,1725071446128,-500.0,0.00032876,31]
[336721339,1725071446138,-500.0,0.00032876,31]
[336721340,1725071446146,-539.95598935,0.00032876,31]
[336721341,1725071446156,-507.57419055,0.00032876,31]
[336721342,1725071446165,-506.28341732,0.00032876,31]
[336721343,1725071446175,-502.25558466,0.00032876,31]
[336721344,1725071446184,-500.0,0.00032876,31]
[336721345,1725071446193,-241.22988231,0.00032876,31]
[336721346,1725071446202,-500.0,0.00032876,31]
[336721347,1725071446212,-500.0,0.00032876,31]
[336721348,1725071446221,-502.90803323,0.00032876,31]
[336721349,1725071446230,-500.0,0.00032876,31]
[336721350,1725071446239,-500.0,0.00032876,31]
[336721351,1725071446249,-500.0,0.00032876,31]
[336721352,1725071446258,-287.78574244,0.00032876,31]
[336721353,1725071446268,-1510.42,0.00032876,31]
[336721354,1725071446278,-500.0,0.00032876,31]
[336721355,1725071446287,-500.0,0.00032876,31]
[336721356,1725071446301,-500.0,0.00032876,31]
[336721357,1725071446310,-500.0,0.00032876,31]
[336721358,1725071446320,-500.0,0.00032876,31]
[336721359,1725071446329,-500.0,0.00032876,31]
[336721360,1725071446339,-500.0,0.00032876,31]
[336721361,1725071446348,-500.0,0.00032876,31]
[336721362,1725071446358,-500.0,0.00032876,31]
[336721363,1725071446368,-500.0,0.00032876,31]
[336721364,1725071446377,-349.972787,0.00032876,31]
[336721365,1725071446386,-500.0,0.00032876,31]
[336721366,1725071446395,-500.0,0.00032876,31]
[336721367,1725071446405,-500.0,0.00032876,31]
[336721368,1725071446416,-500.0,0.00032876,31]
[336721369,1725071446426,-500.0,0.00032876,31]
[336721370,1725071446435,-500.0,0.00032876,31]
[336721371,1725071446445,-500.0,0.00032876,31]
[336721372,1725071446454,-196.82011567,0.00032876,31]
[336721373,1725071446463,-505.3933183,0.00032876,31]
[336721374,1725071446474,-500.0,0.00032876,31]
[336721375,1725071446483,-502.99451351,0.00032876,31]
[336721376,1725071446493,-502.51321199,0.00032876,31]
[336721377,1725071446502,-500.0,0.00032876,31]
[336721378,1725071446512,-500.0,0.00032876,31]
[336721379,1725071446522,-500.0,0.00032876,31]
[336721380,1725071446532,-570.02681267,0.00032876,31]
[336721381,1725071446542,-500.0,0.00032876,31]
[336721382,1725071446551,-281.33120759,0.00032876,31]
[336721383,1725071446561,-1175.21,0.00032876,31]
[336721384,1725071446571,-502.94101076,0.00032876,31]
[336721385,1725071446580,-511.38903306,0.00032876,31]
[336721386,1725071446590,-500.0,0.00032876,31]
[336721387,1725071446600,-500.0,0.00032876,31]
[336721388,1725071446611,-530.3574299,0.00032876,31]
[336721389,1725071446622,-500.0,0.00032876,31]
[336721390,1725071446631,-701.8,0.00032876,31]
[336721391,1725071446643,-608.52,0.00032876,31]
[336721392,1725071446654,-1823.59,0.00032876,31]
[336721393,1725071446665,-694.98,0.00032876,31]
[336721394,1725071446674,-500.0,0.00032876,31]
[336721395,1725071446683,-500.0,0.00032876,31]
[336721396,1725071446692,-500.0,0.00032876,31]
[336721397,1725071446701,-277.85819433,0.00032876,31]
[336721398,1725071446711,-828.62,0.00032876,31]
[336721399,1725071446720,-500.0,0.00032876,31]
[336721400,1725071446730,-500.0,0.00032876,31]
[336721401,1725071446739,-500.0,0.00032876,31]
[336721402,1725071446752,-1824.57,0.00032876,31]
[336721403,1725071446763,-1838.63,0.00032876,31]
[336721404,1725071446772,-500.0,0.00032876,31]
[336721405,1725071446783,-500.0,0.00032876,31]
[336721406,1725071446793,-500.0,0.00032876,31]
[336721407,1725071446809,-500.0,0.00032876,31]
[336721408,1725071446819,-500.0,0.00032876,31]
[336721409,1725071446832,-500.0,0.00032876,31]
[336721410,1725071446843,-635.65043174,0.00032876,31]
[336721411,1725071446853,-3264.27,0.00032876,31]
[336721412,1725071446862,-480.94162809,0.00032876,31]
[336721413,1725071446872,-500.0,0.00032876,31]
[336721414,1725071446883,-1008.94,0.00032876,31]
[336721415,1725071446892,-1850.88,0.00032876,31]
[336721416,1725071446902,-500.0,0.00032876,31]
[336721417,1725071446911,-500.0,0.00032876,31]
[336721418,1725071446923,-500.0,0.00032876,31]
[336721419,1725071446933,-500.0,0.00032876,31]
[336721420,1725071446944,-500.0,0.00032876,31]
[336721421,1725071446956,-500.0,0.00032876,31]
[336721422,1725071446967,-3230.56,0.00032876,31]
[336721423,1725071446976,-500.0,0.00032876,31]
[336721424,1725071446988,-506.20810659,0.00032876,31]
[336721425,1725071446999,-500.0,0.00032876,31]
[336721426,1725071447009,-500.0,0.00032876,31]
[336721427,1725071447020,-1312.43,0.00032876,31]
[336721428,1725071447030,-7289.79,0.00032876,8]
[336721429,1725071447041,-1981.61,0.00032876,31]
[336721430,1725071447052,-1747.41,0.00032876,31]
[336721431,1725071447063,-500.0,0.00032876,31]
[336721432,1725071447074,-500.0,0.00032876,31]
[336721433,1725071447083,-790.28,0.00032876,21]
[336721434,1725071447093,-2034.98,0.00032876,31]
[336721435,1725071447103,-752.26,0.00032876,31]
[336721436,1725071447113,-193.57632089,0.00032876,31]
[336721454,1725071654868,175.640143,0.00014247,2]
[336721481,1725072430100,-175.640143,0.00020707,2]
[336721482,1725072430122,-216.782186,0.00026716,2]
[336721483,1725072430145,-175.640143,0.00027167,2]
[336721484,1725072430169,-251.0,0.00027395,2]
[336721485,1725072430210,-300.0,0.00028,2]
[336721486,1725072430235,-5734.62514308,0.00028001,2]
[336721487,1725072434106,-183.59915508,0.00028001,2]
[336721488,1725072441110,-6737.60090465,0.00028001,2]
[336721489,1725072454171,-944.75174238,0.00028001,2]
[336721491,1725072546121,-300.0,0.00028,2]
[336721492,1725072546144,-11299.42305481,0.00028001,2]
[336721493,1725072546168,-250.0,0.00028041,2]
[336721494,1725072546191,-250.0,0.00028118,2]
[336721495,1725072546214,-250.0,0.00028195,2]
[336721496,1725072546237,-250.0,0.00028272,2]
[336721497,1725072546258,-250.0,0.00028349,2]
[336721498,1725072546283,-250.0,0.00028426,2]
[336721499,1725072546304,-250.0,0.00028503,2]
[336721500,1725072546327,-250.0,0.0002858,2]
[336721501,1725072546349,-250.0,0.00028657,2]
[336721502,1725072546370,-250.0,0.00028734,2]
[336721503,1725072546391,-163.771141,0.00028767,2]
[336721504,1725072546414,-250.0,0.0002881,2]
[336721505,1725072546438,-250.0,0.00028887,2]
[336721506,1725072546462,-250.0,0.00028964,2]
[336721507,1725072546484,-250.0,0.00029041,2]
[336721508,1725072546506,-250.0,0.00029118,2]
[336721509,1725072546527,-250.0,0.00029195,2]
[336721510,1725072546548,-250.0,0.00029272,2]
[336721511,1725072546570,-250.0,0.00029349,2]
[336721512,1725072546592,-250.0,0.00029426,2]
[336721513,1725072546616,-250.0,0.00029503,2]
[336721532,1725072631929,-192.23132526,0.000299,2]
[336721534,1725072631942,-500.0,0.00029999,2]
[336721536,1725072631952,-151.0,0.0003,120]
[336721538,1725072631962,-162.331416,0.00030234,2]
[336721540,1725072631972,-388.0879828,0.00031041,2]
[336721542,1725072631983,-211.0,0.00032,30]
[336721544,1725072631995,-600.0,0.00032013,82]
[336721546,1725072632005,-259.13271159,0.00032013,82]
[336721550,1725072632392,-340.86728841,0.00032013,82]
[336721551,1725072632402,-151.0,0.00032508,7]
[336721552,1725072632411,-256.75503433,0.00032668,2]
[336721559,1725072638322,-143.24496567,0.00032668,2]
[336721560,1725072638333,-5462.86865825,0.00032669,2]
[336721561,1725072638343,-161.55,0.000327,31]
[336721562,1725072638352,-2936.97219386,0.000327,2]
[336721563,1725072638362,-2000.0,0.00032776,2]
[336721564,1725072638371,-17443.62367674,0.00032776,2]
[336721565,1725072638381,-483.02484213,0.00032776,2]
[336721566,1725072638394,-2360.0,0.000328,2]
[336721567,1725072638404,-150.0,0.000328,13]
[336721568,1725072638413,-2705.41380132,0.00032814,14]
[336721569,1725072638423,-8241.78234276,0.00032842,2]
[336721570,1725072638433,-483.0248421,0.00032845,2]
[336721571,1725072638443,-346.96,0.00032856,3]
[336721572,1725072638453,-541.73,0.00032856,3]
[336721573,1725072638462,-451.44,0.00032856,3]
[336721574,1725072638471,-376.2,0.00032856,3]
[336721575,1725072638483,-43846.13092356,0.00032866,4]
[336721576,1725072638495,-1465.21280661,0.00032866,4]
[336721586,1725072640306,164.113414,0.00028767,2]
[336721591,1725072640768,-313.5,0.00032856,3]
[336721592,1725072640778,-1627.28578058,0.00032866,4]
[336721593,1725072640789,-33068.22835075,0.00032866,4]
[336721594,1725072640800,-2174.13921374,0.00032876,5]
[336721595,1725072640811,-379.62239947,0.00032876,31]
[336721596,1725072640821,-500.0,0.00032876,31]
[336721597,1725072640832,-500.0,0.00032876,31]
[336721598,1725072640842,-500.0,0.00032876,31]
[336721599,1725072640852,-500.0,0.00032876,31]
[336721600,1725072640862,-1447.49,0.00032876,31]
[336721601,1725072640871,-500.0,0.00032876,31]
[336721602,1725072640881,-479.24025431,0.00032876,31]
[336721603,1725072640891,-500.0,0.00032876,31]
[336721604,1725072640900,-500.0,0.00032876,31]
[336721605,1725072640909,-500.0,0.00032876,31]
[336721606,1725072640918,-500.0,0.00032876,31]
[336721607,1725072640928,-476.24004104,0.00032876,31]
[336721608,1725072640937,-500.0,0.00032876,31]
[336721609,1725072640948,-500.0,0.00032876,31]
[336721610,1725072640959,-503.92479238,0.00032876,31]
[336721611,1725072640969,-512.73512882,0.00032876,31]
[336721612,1725072640978,-500.0,0.00032876,31]
[336721613,1725072640987,-500.0,0.00032876,31]
[336721614,1725072640998,-501.16553554,0.00032876,31]
[336721615,1725072641008,-500.0,0.00032876,31]
[336721616,1725072641019,-500.0,0.00032876,31]
[336721617,1725072641030,-672.56,0.00032876,31]
[336721618,1725072641042,-500.0,0.00032876,31]
[336721619,1725072641052,-500.0,0.00032876,31]
[336721620,1725072641062,-545.30080222,0.00032876,31]
[336721621,1725072641072,-500.0,0.00032876,31]
[336721622,1725072641081,-500.0,0.00032876,31]
[336721623,1725072641091,-500.0,0.00032876,31]
[336721624,1725072641100,-500.0,0.00032876,31]
[336721625,1725072641110,-500.0,0.00032876,31]
[336721626,1725072641119,-522.43868621,0.00032876,30]
[336721627,1725072641128,-500.0,0.00032876,31]
[336721628,1725072641138,-212.56,0.00032876,31]
[336721629,1725072641147,-500.0,0.00032876,31]
[336721630,1725072641156,-354.90164115,0.00032876,31]
[336721631,1725072641166,-500.0,0.00032876,31]
[336721632,1725072641175,-500.0,0.00032876,31]
[336721633,1725072641184,-500.0,0.00032876,31]
[336721634,1725072641193,-500.0,0.00032876,31]
[336721635,1725072641202,-501.26578598,0.00032876,31]
[336721636,1725072641211,-643.5129002,0.00032876,31]
[336721637,1725072641224,-500.0,0.00032876,31]
[336721638,1725072641234,-501.34270261,0.00032876,31]
[336721639,1725072641243,-500.0,0.00032876,31]
[336721640,1725072641253,-586.50631276,0.00032876,31]
[336721641,1725072641262,-500.0,0.00032876,31]
[336721642,1725072641278,-500.0,0.00032876,31]
[336721643,1725072641287,-500.67349386,0.00032876,31]
[336721644,1725072641297,-500.0,0.00032876,31]
[336721645,1725072641306,-500.0,0.00032876,31]
[336721646,1725072641315,-509.59,0.00032876,31]
[336721647,1725072641325,-501.0115254,0.00032876,31]
[336721648,1725072641337,-500.0,0.00032876,31]
[336721649,1725072641346,-500.0,0.00032876,31]
[336721650,1725072641356,-500.0,0.00032876,31]
[336721651,1725072641365,-500.0,0.00032876,31]
[336721652,1725072641375,-500.0,0.00032876,31]
[336721653,1725072641384,-500.0,0.00032876,31]
[336721654,1725072641393,-500.0,0.00032876,31]
[336721655,1725072641403,-500.0,0.00032876,31]
[336721656,1725072641414,-500.0,0.00032876,31]
[336721657,1725072641425,-500.0,0.00032876,31]
[336721658,1725072641435,-500.0,0.00032876,31]
[336721659,1725072641447,-743.1,0.00032876,31]
[336721660,1725072641458,-500.0,0.00032876,31]
[336721661,1725072641468,-500.0,0.00032876,31]
[336721662,1725072641479,-500.0,0.00032876,31]
[336721663,1725072641490,-500.0,0.00032876,31]
[336721664,1725072641501,-500.0,0.00032876,31]
[336721665,1725072641512,-501.22280127,0.00032876,31]
[336721666,1725072641522,-723.06,0.00032876,31]
[336721667,1725072641534,-500.0,0.00032876,31]
[336721668,1725072641545,-500.0,0.00032876,31]
[336721669,1725072641557,-500.0,0.00032876,31]
[336721670,1725072641567,-500.0,0.00032876,31]
[336721671,1725072641577,-500.0,0.00032876,31]
[336721672,1725072641588,-611.89,0.00032876,31]
[336721673,1725072641600,-501.61147361,0.00032876,31]
[336721674,1725072641611,-500.0,0.00032876,31]
[336721675,1725072641621,-500.0,0.00032876,31]
[336721676,1725072641629,-500.0,0.00032876,31]
[336721677,1725072641639,-500.0,0.00032876,31]
[336721678,1725072641648,-500.0,0.00032876,31]
[336721679,1725072641659,-500.0,0.00032876,31]
[336721680,1725072641668,-500.0,0.00032876,30]
[336721681,1725072641677,-500.0,0.00032876,31]
[336721682,1725072641686,-500.0,0.00032876,31]
[336721683,1725072641695,-514.5,0.00032876,31]
[336721684,1725072641705,-500.0,0.00032876,31]
[336721685,1725072641714,-500.0,0.00032876,31]
[336721686,1725072641723,-500.0,0.00032876,31]
[336721687,1725072641732,-500.0,0.00032876,31]
[336721688,1725072641742,-626.03078535,0.00032876,31]
[336721689,1725072641751,-500.0,0.00032876,31]
[336721690,1725072641760,-1747.6,0.00032876,31]
[336721691,1725072641770,-500.0,0.00032876,31]
[336721692,1725072641779,-500.0,0.00032876,31]
[336721693,1725072641788,-500.0,0.00032876,31]
[336721694,1725072641799,-500.0,0.00032876,31]
[336721695,1725072641808,-500.0,0.00032876,31]
[336721696,1725072641817,-406.08635619,0.00032876,31]
[336721697,1725072641828,-500.0,0.00032876,31]
[336721698,1725072641837,-500.0,0.00032876,31]
[336721699,1725072641846,-70.35659722,0.00032876,31]
[336721702,1725072643224,-9.59137979,0.000327,31]
[336721749,1725072646369,-20.39990612,0.000327,31]
[336721755,1725072748012,500.0,0.00029337,2]
[336721756,1725072749523,14.54177569,0.00014247,2]
[336721758,1725072749546,177.90376731,0.00014247,2]
[336721759,1725072749765,192.445543,0.00020707,2]
[336721760,1725072750001,192.445543,0.00027167,2]
[336721767,1725073067499,203.58,0.00017,2]
[336721774,1725073560361,163.578711,0.00014247,2]
[336721776,1725073645235,-163.578711,0.00020707,2]
[336721777,1725073645260,-693.22,0.00027,14]
[336721778,1725073645283,-181.9195043,0.00027058,2]
[336721779,1725073645305,-163.578711,0.00027167,2]
[336721780,1725073645327,-300.0,0.00028217,2]
[336721781,1725073645350,-204.0,0.00028217,2]
[336721782,1725073645373,-351.80642275,0.00028218,2]
[336721784,1725073753274,-500.0,0.0002728,2]
[336721785,1725073753296,-216.782187,0.00027918,2]
[336721786,1725073753317,-300.0,0.00028217,2]
[336721787,1725073753339,-1336.643615,0.00028218,2]
[336721788,1725073753384,-23211.54996225,0.00028218,2]
[336721789,1725073753409,-500.0,0.00028704,2]
[336721790,1725073753430,-165.852495,0.00028767,2]
[336721791,1725073753453,-250.0,0.00028879,2]
[336721792,1725073753476,-250.0,0.00028959,2]
[336721793,1725073753498,-250.0,0.00029038,2]
[336721794,1725073753520,-250.0,0.00029117,2]
[336721795,1725073753541,-250.0,0.00029196,2]
[336721796,1725073753563,-250.0,0.00029275,2]
[336721797,1725073753584,-250.0,0.00029355,2]
[336721798,1725073753609,-250.0,0.00029434,2]
[336721799,1725073753631,-250.0,0.00029513,2]
[336721800,1725073758257,-250.0,0.00029592,2]
[336721801,1725073758280,-250.0,0.00029671,2]
[336721802,1725073758301,-250.0,0.00029751,2]
[336721803,1725073758459,-250.0,0.0002983,2]
[336721868,1725073850111,-250.0,0.00029909,2]
[336721869,1725073850123,-250.0,0.00029988,2]
[336721870,1725073850133,-500.0,0.0003,2]
[336721871,1725073850145,-250.0,0.00030067,2]
[336721872,1725073850156,-250.0,0.00030147,2]
[336721873,1725073850167,-151.52201535,0.00030226,2]
[336721874,1725073850182,-98.47798465,0.00030226,2]
[336721875,1725073850195,-250.0,0.00030305,2]
[336721876,1725073850206,-250.0,0.00030384,2]
[336721877,1725073850220,-500.0,0.00030411,7]
[336721878,1725073850234,-500.0,0.00031061,7]
[336721879,1725073850245,-934.90924831,0.00031158,2]
[336721880,1725073850258,-510.35969846,0.00031286,7]
[336721881,1725073850269,-377.0,0.00032632,2]
[336721882,1725073850283,-153.0,0.00032633,2]
[336721883,1725073850294,-153.0,0.00032633,2]
[336721884,1725073850305,-153.0,0.00032633,2]
[336721885,1725073850316,-153.0,0.00032633,2]
[336721886,1725073850326,-157.82,0.000327,31]
[336721887,1725073850336,-2939.03338435,0.00032756,2]
[336721888,1725073850349,-782.24890729,0.00032776,2]
[336721889,1725073850362,-577.57840795,0.00032776,2]
[336721890,1725073850374,-577.57840794,0.00032842,2]
[336721891,1725073850385,-32556.4963341,0.00032856,4]
[336721892,1725073850397,-101115.02980678,0.00032866,4]
[336721893,1725073850487,-545.96169446,0.00032866,4]
[336721894,1725073850500,-61121.49016876,0.00032866,4]
[336721895,1725073850511,-500.0,0.00032875,2]
[336721896,1725073850522,-626.78013858,0.00032875,2]
[336721897,1725073850533,-2174.13921374,0.00032876,5]
[336721898,1725073850543,-500.0,0.00032876,31]
[336721899,1725073850553,-509.93222183,0.00032876,31]
[336721900,1725073850564,-427.60794066,0.00032876,31]
[336721901,1725073850574,-502.80472781,0.00032876,31]
[336721902,1725073850585,-500.0,0.00032876,31]
[336721903,1725073850595,-502.66437614,0.00032876,31]
[336721904,1725073850606,-500.0,0.00032876,31]
[336721905,1725073850617,-506.62669606,0.00032876,31]
[336721906,1725073850627,-500.0,0.00032876,31]
[336721907,1725073850638,-500.0,0.00032876,31]